bitfinex/quotes_ETHUSD_20241203
["timestamp","ask_amount","ask_price","bid_price","bid_amount"]
[1733253898881,2.83445962,3566.1,3564.7,0.8108]
[1733253898882,2.83445962,3565.8,3564.7,0.8108]
[1733253899076,0.03562509,3565.2,3564.7,3.61607]
[1733253899308,2.83445962,3565.8,3564.8,3.20286502]
[1733253899602,9.25251715,3566.5,3565.0,2.80504]
[1733253899603,0.03562509,3565.1,3565.0,2.80504]
[1733253899801,5.63866962,3566.1,3565.0,2.80504]
[1733253900001,2.80427,3566.0,3564.8,0.39768502]
[1733253900206,0.03568332,3566.0,3564.8,0.39768502]
[1733253900364,0.03568332,3566.0,3565.1,2.80494]
[1733253900568,0.29293479,3565.9,3564.9,2.80506]
[1733253900863,0.03449582,3565.8,3564.9,2.80506]
[1733253901716,0.03449582,3565.8,3565.0,2.80504]
[1733253901869,2.83893582,3565.8,3564.8,2.80517]
[1733253902072,2.83893582,3565.8,3564.9,0.661597]
[1733253902073,0.03449582,3565.8,3564.9,0.661597]
[1733253902288,0.29293479,3565.9,3564.9,2.80509]
[1733253902742,0.03449582,3565.8,3564.9,2.80509]
[1733253903026,0.03449582,3565.8,3564.7,0.8108]
[1733253903027,0.27743061,3565.9,3565.0,2.80503]
[1733253903226,0.03334596,3565.7,3564.7,3.8108]
[1733253903399,0.27743061,3565.9,3564.8,0.661613]
[1733253903595,0.27743061,3565.9,3564.8,3.466793]
[1733253903826,0.27743061,3565.9,3564.8,0.661613]
[1733253904032,2.8045,3565.7,3564.7,3.61608]
[1733253904242,2.86780558,3565.8,3564.8,5.80519]
[1733253904397,0.03343109,3565.6,3564.8,5.80519]
[1733253904730,0.03343109,3565.5,3564.9,2.80512]
[1733253904931,0.03343109,3565.5,3565.3,2.80473]
[1733253905234,6.06254259,3566.4,3565.4,3.085203]
[1733253905415,5.80397,3566.4,3565.4,3.085203]
[1733253905737,2.80424,3566.1,3565.0,2.80502]
[1733253906319,0.03355649,3566.0,3565.2,2.80488]
[1733253906640,0.03355649,3566.0,3565.3,2.80481]
[1733253906835,2.80404,3566.3,3565.3,2.80481]
[1733253907007,0.03355649,3565.9,3565.4,0.02804515]
[1733253907209,0.25877228,3566.8,3565.1,0.8329]
[1733253907408,0.25877228,3566.8,3565.8,2.80441]
[1733253907619,0.03352963,3566.7,3566.1,2.80416]
[1733253908231,0.03352963,3566.7,3566.0,0.8285]
[1733253908468,0.25877228,3567.1,3566.0,0.8285]
[1733253908600,0.25877228,3567.4,3566.4,2.80388]
[1733253908795,0.25877228,3567.4,3566.4,0.560806]
[1733253908796,0.03352963,3567.0,3566.4,0.560806]
[1733253908994,0.25877228,3567.7,3566.6,3.63224]
[1733253909198,0.25877228,3567.9,3567.1,2.80339]
[1733253909397,0.03393263,3567.6,3566.9,2.80352]
[1733253909844,0.03393263,3567.6,3566.6,0.8285]
[1733253910339,3.06169228,3567.7,3566.7,2.80371]
[1733253910658,0.03393263,3567.5,3566.7,2.80371]
[1733253910813,0.25877228,3567.6,3566.6,0.8285]
[1733253910814,3.06184228,3567.6,3566.6,3.8285]
[1733253911014,2.83445962,3567.8,3566.4,3.0]
[1733253911015,0.03420116,3567.4,3566.4,3.0]
[1733253911211,2.80309,3567.5,3566.4,3.0]
[1733253911436,0.03420116,3567.3,3566.4,3.0]
[1733253911654,0.25934851,3567.4,3566.5,3.18713]
[1733253911951,2.80314,3567.5,3566.5,0.38328]
[1733253912154,0.03420116,3567.3,3566.1,5.80415]
[1733253912451,0.2593533,3567.4,3566.1,5.80415]
[1733253912452,2.80339,3567.1,3566.1,5.80415]
[1733253912652,2.80339,3567.1,3565.9,0.8194]
[1733253912653,0.03420116,3567.2,3566.0,2.80426]
[1733253912825,2.80322,3567.4,3565.9,6.62369]
[1733253912826,0.03414299,3567.0,3565.9,6.62369]
[1733253913031,0.25940653,3567.3,3566.4,2.80392]
[1733253913555,0.03414299,3567.2,3565.9,3.8194]
[1733253913756,2.83746299,3567.2,3566.0,0.38194]
[1733253913912,2.80351,3567.0,3566.0,2.80423]
[1733253914117,2.86860261,3567.2,3565.9,0.8194]
[1733253914364,2.83445962,3567.2,3565.5,3.0]
[1733253914562,8.88,3567.7,3565.6,0.8136]
[1733253914563,2.80382,3566.6,3565.6,0.8136]
[1733253914850,2.80382,3566.6,3565.6,3.6181]
[1733253915063,2.80382,3566.6,3565.6,3.97991]
[1733253915229,0.03406243,3566.5,3565.6,3.97991]
[1733253915764,0.03406243,3566.5,3565.7,3.0]
[1733253916051,0.03406243,3566.5,3565.6,3.97991]
[1733253916565,2.83445962,3566.9,3565.6,1.17541]
[1733253916730,0.03390576,3566.4,3565.7,2.80449]
[1733253916938,5.63803962,3566.9,3565.6,1.17541]
[1733253917126,0.03390576,3566.3,3565.8,2.80434]
[1733253917326,5.63803962,3566.9,3565.8,2.80434]
[1733253917526,2.80366,3566.8,3565.8,2.80434]
[1733253917833,2.83756129,3566.8,3565.8,2.80434]
[1733253918033,0.03390129,3566.8,3565.6,0.8136]
[1733253918358,0.03390129,3566.8,3565.7,0.661828]
[1733253918525,0.03390129,3566.8,3565.6,3.61815]
[1733253918724,0.29324183,3566.8,3565.3,0.8268]
[1733253918922,0.29324183,3566.8,3565.5,2.80459]
[1733253918923,2.83445962,3566.5,3565.5,2.80459]
[1733253919270,2.80382,3566.6,3565.5,2.80464]
[1733253919566,0.03390129,3566.8,3565.7,2.80449]
[1733253919567,0.03390129,3566.5,3565.7,2.80449]
[1733253919745,2.80371,3566.7,3565.7,2.80449]
[1733253919939,0.03390129,3566.4,3565.8,2.80436]
[1733253920261,5.63800962,3566.9,3565.8,2.80436]
[1733253920459,0.03390129,3566.3,3565.5,2.80462]
[1733253920659,0.25933026,3566.8,3565.4,2.80473]
[1733253920966,2.83445962,3566.9,3565.4,2.80473]
[1733253920967,5.63801962,3566.9,3565.8,2.80437]
[1733253921193,0.03390129,3566.7,3565.8,2.80437]
[1733253921380,5.63801962,3566.9,3565.8,2.80437]
[1733253921576,0.03390129,3566.6,3565.8,2.80437]
[1733253921887,2.80372,3566.7,3565.6,2.80454]
[1733253922097,2.80372,3566.7,3565.3,0.8268]
[1733253922098,0.03390129,3566.5,3565.3,0.8268]
[1733253922266,2.80372,3566.7,3565.8,2.80441]
[1733253922467,5.63802962,3566.9,3565.8,2.80441]
[1733253922693,0.03367474,3566.8,3565.8,2.80441]
[1733253922903,0.03367474,3566.8,3565.9,2.80433]
[1733253923389,0.03367474,3566.8,3565.4,2.80469]
[1733253923551,0.03367474,3566.8,3566.0,2.80425]
[1733253923889,0.03367474,3566.8,3565.8,2.80434]
[1733253924075,2.83731474,3566.8,3565.8,2.80434]
[1733253924278,0.03367474,3566.8,3565.3,0.8268]
[1733253924453,2.8041,3566.2,3565.1,5.80493]
[1733253924819,0.03367921,3566.1,3565.1,5.80493]
[1733253924963,0.03367921,3566.1,3564.7,2.80524]
[1733253924964,2.83445962,3566.0,3564.7,0.824]
[1733253925157,2.80442,3565.8,3564.8,2.80519]
[1733253925498,2.80434,3565.9,3564.9,2.80512]
[1733253925851,0.03369711,3565.8,3564.9,2.80512]
[1733253926055,0.03369711,3565.8,3564.7,3.62922]
[1733253926056,2.83814711,3565.8,3564.7,3.62922]
[1733253926270,2.83814711,3565.8,3564.8,0.362922]
[1733253926571,5.63903962,3565.6,3564.6,3.0]
[1733253927076,5.63903962,3565.6,3564.6,5.80533]
[1733253927284,0.03335234,3565.5,3564.6,5.80533]
[1733253928158,0.03335234,3565.5,3564.5,3.0]
[1733253928467,0.03335234,3565.5,3564.4,0.7531]
[1733253928705,2.80437,3565.9,3564.7,2.80523]
[1733253928903,2.83769623,3565.8,3564.6,2.80529]
[1733253929110,2.83769623,3565.8,3564.5,0.37531]
[1733253929111,0.03327623,3565.8,3564.5,0.37531]
[1733253929404,0.03327623,3565.8,3565.0,0.7556]
[1733253929623,5.63842962,3566.4,3565.3,2.8048]
[1733253929624,0.25959474,3566.3,3565.3,2.8048]
[1733253929804,0.03327173,3565.7,3565.4,2.80468]
[1733253930006,2.83445962,3566.4,3565.4,2.80468]
[1733253930339,0.25960155,3566.3,3565.5,2.80464]
[1733253930496,0.25960155,3566.3,3565.4,0.280468]
[1733253930698,0.25960155,3566.3,3565.0,3.56057]
[1733253930699,2.80426,3566.0,3565.0,0.7556]
[1733253931203,2.83445962,3566.1,3565.1,2.80496]
[1733253931999,0.03358527,3566.0,3565.1,2.80496]
[1733253932212,0.03358527,3566.0,3565.2,2.80488]
[1733253933735,0.03358527,3566.0,3564.8,2.80518]
[1733253934035,0.03358527,3566.0,3565.0,2.80504]
[1733253935800,2.83787527,3566.0,3565.0,2.80504]
[1733253936000,0.03358527,3566.0,3564.9,0.656088]
[1733253936214,0.03358527,3566.0,3565.4,0.8009]
[1733253936440,0.25980612,3566.5,3565.6,2.80455]
[1733253936644,0.03342403,3565.9,3565.6,2.80455]
[1733253936832,0.25980612,3566.5,3565.6,2.80455]
[1733253937153,0.25980612,3566.4,3565.6,2.80455]
[1733253937343,0.25980612,3566.3,3565.7,0.34006444]
[1733253937754,0.03355393,3566.2,3565.7,0.34006444]
[1733253938112,3.25980612,3566.7,3565.4,0.8009]
[1733253938113,2.80389,3566.5,3565.6,2.80457]
[1733253938317,0.29336005,3566.4,3565.6,2.80457]
[1733253938646,0.25980612,3566.3,3565.6,2.80457]
[1733253939017,0.25980612,3566.3,3565.6,2.80456]
[1733253939218,0.03355393,3566.4,3565.6,2.80456]
[1733253939449,0.25980612,3566.5,3565.7,3.165026]
[1733253939651,0.25980612,3566.4,3565.7,0.360546]
[1733253939882,0.25980612,3566.5,3565.7,0.360546]
[1733253940027,0.03354943,3566.3,3565.7,0.360546]
[1733253940235,0.25980612,3566.3,3565.6,2.80456]
[1733253940534,0.03354943,3566.2,3565.6,2.80456]
[1733253941051,0.25980612,3566.3,3565.7,2.80448]
[1733253941257,0.03378233,3566.1,3565.7,2.80448]
[1733253941470,0.03380024,3566.2,3565.7,2.80448]
[1733253941759,0.03380024,3566.1,3565.8,0.280448]
[1733253941919,0.03380024,3566.1,3566.0,2.80426]
[1733253942270,0.25980612,3567.0,3566.4,2.8039]
[1733253942636,0.29367352,3566.9,3566.1,2.80413]
[1733253942829,0.25980612,3566.8,3566.0,2.80424]
[1733253943160,0.29377206,3566.7,3565.9,0.7819]
[1733253943359,0.29377206,3566.7,3565.8,2.80435]
[1733253943360,0.25980612,3566.6,3565.8,2.80435]
[1733253943575,0.25980612,3566.5,3565.8,2.80435]
[1733253943799,0.26016291,3566.6,3565.8,2.80435]
[1733253944000,0.03396594,3566.4,3565.8,2.80435]
[1733253944303,0.26016138,3566.8,3565.9,0.655525]
[1733253944463,0.26016138,3566.7,3565.6,6.55545]
[1733253944796,3.06398138,3566.6,3565.6,2.80455]
[1733253944996,5.63796962,3567.0,3565.3,0.7929]
[1733253944997,0.26016138,3566.5,3565.3,3.7929]
[1733253945303,0.26016138,3566.4,3565.5,5.80462]
[1733253945598,2.80356,3566.9,3565.5,5.80462]
[1733253945802,0.0340062,3566.3,3565.6,0.659752]
[1733253946007,0.26019132,3566.8,3565.8,2.80434]
[1733253946174,0.0340062,3566.2,3565.8,2.80434]
[1733253946362,0.26019132,3566.6,3565.8,2.80434]
[1733253946568,0.0340062,3566.1,3565.8,2.80434]
[1733253946798,0.26019132,3566.4,3565.8,0.6464092]
[1733253946962,0.0340286,3566.0,3565.8,0.6464092]
[1733253947304,2.80387,3566.5,3565.5,5.8046]
[1733253947510,0.26021754,3566.4,3565.5,5.8046]
[1733253947691,0.26021754,3566.3,3565.5,5.8046]
[1733253947895,0.26021754,3566.3,3565.3,0.7929]
[1733253947896,0.26021754,3566.3,3565.3,3.59763]
[1733253948094,0.26021754,3566.2,3565.3,0.7929]
[1733253948266,2.804,3566.4,3565.3,0.7929]
[1733253948635,2.83445962,3566.6,3565.5,2.80465]
[1733253948636,0.26025787,3566.3,3565.5,2.80465]
[1733253948760,0.26025787,3566.2,3565.5,2.80465]
[1733253949110,5.63825962,3566.6,3565.3,0.7929]
[1733253949111,2.83445962,3566.6,3565.3,0.7929]
[1733253949262,2.80406,3566.3,3565.3,0.7929]
[1733253949592,0.2602631,3566.2,3565.4,2.8047]
[1733253949769,0.2602631,3566.1,3565.5,2.80463]
[1733253950103,0.26027906,3566.4,3565.5,2.80463]
[1733253950302,0.26028868,3566.3,3565.5,2.80463]
[1733253950473,2.80388,3566.5,3565.5,2.80463]
[1733253950474,0.26028868,3566.2,3565.5,2.80463]
[1733253950667,0.26028868,3566.1,3565.4,0.35976]
[1733253950863,0.03285852,3566.1,3565.4,0.35976]
[1733253951069,0.03285852,3566.1,3565.4,3.16447]
[1733253951286,2.80396,3566.4,3565.5,0.395737]
[1733253951486,0.03275998,3566.0,3565.5,0.395737]
[1733253951687,2.80396,3566.4,3565.5,0.395737]
[1733253951688,0.26031591,3566.2,3565.5,0.395737]
[1733253951883,0.03275998,3565.9,3565.2,3.0]
[1733253952078,0.26031591,3566.0,3565.2,2.80488]
[1733253952283,2.83445962,3566.2,3565.2,2.80488]
[1733253952484,0.03277792,3565.9,3565.2,2.80488]
[1733253952711,0.26031621,3566.0,3565.2,2.80488]
[1733253953022,2.83445962,3566.2,3565.0,0.7794]
[1733253953183,2.80442,3565.8,3564.7,3.0]
[1733253953384,0.260292,3565.7,3564.6,2.8053]
[1733253953585,0.260292,3565.6,3564.7,2.80527]
[1733253953787,0.03270178,3565.7,3564.7,2.80527]
[1733253953788,5.63887962,3565.8,3564.7,2.80527]
[1733253954137,5.63887962,3565.8,3564.7,0.358467]
[1733253954138,0.03270178,3565.5,3564.7,0.358467]
[1733253954304,2.80458,3565.6,3564.7,0.358467]
[1733253954503,2.83445962,3565.8,3564.4,0.7794]
[1733253954504,0.03257192,3565.4,3564.5,2.80543]
[1733253954836,0.03257192,3565.3,3564.4,3.58485]
[1733253954997,0.26027291,3565.3,3564.4,3.58485]
[1733253955198,0.03257192,3565.2,3564.4,3.58485]
[1733253955423,2.80466,3565.5,3564.5,2.80541]
[1733253955606,0.03257192,3565.1,3564.6,2.80536]
[1733253955933,0.26020242,3565.3,3564.6,2.80536]
[1733253956141,0.03249128,3565.0,3564.6,2.80536]
[1733253956307,2.80458,3565.6,3564.6,2.80536]
[1733253956308,0.26020242,3565.4,3564.6,2.80536]
[1733253956510,0.03249128,3564.9,3564.6,2.80536]
[1733253956829,2.83445962,3565.8,3564.4,0.7794]
[1733253956830,0.03249128,3564.8,3564.7,0.3943241]
[1733253957032,0.26015243,3565.4,3564.6,2.80529]
[1733253957328,2.80456,3565.7,3564.6,2.80529]
[1733253957329,0.03249128,3564.8,3564.6,2.80529]
[1733253957507,2.80456,3565.7,3564.6,2.80529]
[1733253957508,0.26015243,3565.5,3564.6,2.80529]
[1733253957833,0.03246442,3565.4,3564.6,2.80529]
[1733253958004,0.26015243,3565.5,3564.7,3.163709]
[1733253958207,0.36581846,3566.5,3564.2,2.80564]
[1733253958208,0.03246442,3565.3,3564.2,2.80564]
[1733253958517,2.80496,3565.2,3564.2,2.80564]
[1733253958757,2.83742442,3565.2,3564.2,2.80564]
[1733253958965,2.83742442,3565.2,3564.3,2.80557]
[1733253959270,0.03246442,3565.2,3563.9,5.80591]
[1733253959474,0.03246442,3565.2,3564.4,2.80544]
[1733253959660,0.26003984,3565.3,3564.4,2.80544]
[1733253959834,0.03248232,3565.1,3564.4,2.80544]
[1733253960035,0.26003984,3565.3,3564.4,2.80544]
[1733253960237,0.03238825,3565.0,3564.1,3.0]
[1733253960432,0.26003984,3565.3,3564.2,0.9463911]
[1733253960678,0.03238825,3564.9,3564.7,2.80527]
[1733253960976,5.63889962,3565.8,3564.7,2.80527]
[1733253960977,0.26008236,3565.7,3564.7,2.80527]
[1733253961270,0.26008236,3565.6,3564.7,2.80527]
[1733253961576,0.26008236,3565.5,3564.7,2.80521]
[1733253962076,2.83445962,3565.8,3564.7,2.80521]
[1733253962077,0.03243305,3565.4,3564.7,2.80521]
[1733253962241,0.03243305,3565.4,3564.7,3.085731]
[1733253962648,2.8045,3565.7,3564.7,3.085731]
[1733253962849,0.0321688,3565.3,3564.7,3.085731]
[1733253963071,0.26005351,3565.6,3564.7,3.085731]
[1733253963295,0.0321688,3565.2,3564.8,2.80515]
[1733253963493,0.0321688,3565.2,3564.9,0.3085671]
[1733253963662,3.06463351,3565.6,3564.7,0.280521]
[1733253963860,0.26001796,3565.5,3564.4,2.80551]
[1733253964062,2.80479,3565.4,3564.4,2.80551]
[1733253964446,0.03218672,3565.3,3564.4,2.80551]
[1733253964873,0.03218672,3565.3,3564.5,2.80542]
[1733253965074,0.03218672,3565.3,3564.3,0.7763]
[1733253965273,0.26003447,3565.5,3564.4,0.358202]
[1733253965490,0.03215536,3565.2,3564.9,2.80511]
[1733253965786,0.26003447,3565.7,3564.3,0.7763]
[1733253965992,0.03215536,3565.1,3564.7,2.80526]
[1733253966152,2.80459,3565.6,3564.3,0.7763]
[1733253966351,2.80459,3565.6,3564.6,2.80534]
[1733253966680,0.03215536,3565.5,3564.7,0.280534]
[1733253966983,0.29212969,3565.5,3564.7,0.280534]
[1733253967190,0.29212969,3565.5,3564.7,3.085814]
[1733253967487,0.03215536,3565.5,3564.7,3.085814]
[1733253967998,0.25994477,3565.7,3564.7,3.085814]
[1733253968293,0.03213746,3565.4,3564.7,3.085814]
[1733253968451,0.25994477,3565.6,3564.8,0.3085814]
[1733253968647,0.03213746,3565.3,3564.7,2.80528]
[1733253968851,0.25994477,3565.6,3564.7,2.80528]
[1733253969288,0.03213746,3565.5,3564.7,2.80528]
[1733253969649,0.03213746,3565.5,3564.8,2.80518]
[1733253969868,0.03213746,3565.5,3564.9,2.8051]
[1733253970158,0.03213746,3565.4,3565.0,0.28051]
[1733253970555,0.03213746,3565.4,3565.2,2.80486]
[1733253970776,2.80403,3566.3,3565.4,2.80473]
[1733253970977,0.25991461,3566.2,3565.2,2.80482]
[1733253971298,0.25991461,3566.1,3565.3,0.589034]
[1733253971492,0.25991461,3566.2,3565.3,0.589034]
[1733253971665,0.25991461,3566.1,3565.7,2.80449]
[1733253971866,0.25991461,3566.7,3565.7,2.80449]
[1733253972179,0.25991461,3566.6,3565.7,2.80449]
[1733253972349,0.25991461,3566.5,3565.5,0.7984]
[1733253972555,0.25991461,3566.4,3565.6,2.80456]
[1733253972858,0.25991461,3566.3,3565.6,3.2237594]
[1733253973054,0.25991461,3566.5,3565.6,3.2237594]
[1733253973272,0.25991461,3566.4,3565.7,2.80447]
[1733253973478,1.15838706,3566.9,3565.6,0.4191994]
[1733253973479,0.25991461,3566.3,3565.6,0.4191994]
[1733253973725,0.03255399,3566.3,3565.8,2.80441]
[1733253974057,0.25991461,3566.5,3565.5,0.7984]
[1733253974258,0.03265699,3566.2,3565.5,3.7984]
[1733253974507,5.89840423,3566.3,3565.5,0.7984]
[1733253974667,2.83445962,3566.0,3565.2,3.56248]
[1733253974853,2.83445962,3566.0,3565.2,3.918728]
[1733253975053,0.03273312,3565.9,3565.3,2.80478]
[1733253975795,0.03273312,3565.9,3565.4,2.80472]
[1733253975996,0.26016919,3566.2,3565.4,2.80472]
[1733253976196,0.26016919,3566.1,3565.4,2.80472]
[1733253976357,0.26016919,3566.0,3565.2,0.356248]
[1733253976564,3.09462881,3565.9,3565.0,2.80503]
[1733253976763,0.03262565,3565.8,3565.0,2.80503]
[1733253977292,0.2928075,3565.8,3565.0,3.0]
[1733253977522,0.2602269,3565.7,3565.0,3.0]
[1733253977920,0.29281225,3565.6,3564.6,0.7704]
[1733253978138,0.03258535,3565.6,3564.7,2.80521]
[1733253978424,0.26024419,3565.5,3564.8,2.80514]
[1733253978626,0.03258535,3565.5,3564.9,2.80512]
[1733253978923,0.26025017,3565.6,3564.9,2.80512]
[1733253979084,0.03246441,3565.4,3564.9,2.80512]
[1733253979283,0.2602516,3565.8,3564.9,2.80512]
[1733253979284,0.2602516,3565.7,3564.9,3.162672]
[1733253979486,0.03246441,3565.3,3564.9,3.162672]
[1733253979786,0.03246441,3565.2,3564.9,3.162672]
[1733253980095,0.26028922,3565.7,3564.9,0.357552]
[1733253980312,0.03246441,3565.1,3564.7,2.80524]
[1733253980515,2.80479,3565.4,3564.4,2.80547]
[1733253980826,0.03246441,3565.3,3564.4,2.80547]
[1733253980991,0.29274542,3565.3,3564.4,2.80547]
[1733253981238,2.83728441,3565.3,3564.3,0.7843]
[1733253981383,2.80505,3565.0,3564.0,3.463851]
[1733253981578,0.03244651,3564.9,3564.0,3.463851]
[1733253981784,0.03244651,3564.9,3563.6,0.7713]
[1733253982221,0.03244651,3564.9,3563.9,2.80589]
[1733253982423,2.80549,3564.5,3563.6,0.7713]
[1733253982626,5.63994962,3564.5,3563.5,2.80619]
[1733253982926,2.80552,3564.4,3563.5,2.80619]
[1733253983096,2.80552,3564.4,3563.5,0.356739]
[1733253983097,2.83768875,3564.4,3563.5,0.356739]
[1733253983426,2.83768875,3564.4,3562.4,2.83445962]
[1733253983427,2.83445962,3563.8,3562.4,0.7612]
[1733253983583,2.83445962,3563.4,3562.4,0.7612]
[1733253983783,2.83445962,3563.4,3562.6,2.80693]
[1733253983985,0.03196708,3563.3,3562.4,3.56826]
[1733253984207,0.03196708,3563.3,3561.6,0.7612]
[1733253984407,2.83445962,3563.1,3562.2,2.80717]
[1733253984888,2.83445962,3563.1,3562.0,2.80733]
[1733253984889,0.03102609,3563.0,3562.0,2.80733]
[1733253985096,2.83445962,3563.1,3562.0,2.80737]
[1733253985297,0.03074369,3562.9,3562.0,2.80737]
[1733253985626,0.03074369,3562.8,3561.7,0.47193596]
[1733253985941,2.83445962,3563.1,3562.1,2.80731]
[1733253986239,2.83445962,3562.8,3561.9,2.80748]
[1733253986731,2.83445962,3563.1,3562.0,2.80738]
[1733253987041,2.83445962,3562.8,3561.8,0.4040816]
[1733253987205,2.83445962,3562.8,3562.0,2.8074]
[1733253987407,2.83445962,3562.8,3561.6,0.7612]
[1733253987408,0.03041183,3562.7,3561.8,2.80755]
[1733253987595,2.83445962,3562.8,3561.8,2.80755]
[1733253988195,2.83445962,3562.8,3561.6,3.7612]
[1733253988403,2.83445962,3562.8,3561.7,0.656896]
[1733253988597,2.83445962,3562.8,3561.9,2.80741]
[1733253989832,2.83445962,3562.8,3561.7,0.656896]
[1733253989833,2.83445962,3562.8,3562.0,2.8074]
[1733253990221,2.83445962,3563.1,3562.2,2.80724]
[1733253990546,2.83445962,3563.4,3561.9,2.80749]
[1733253990749,0.03041183,3563.0,3562.5,2.80698]
[1733253990928,2.83445962,3563.4,3562.5,2.80698]
[1733253991124,2.83445962,3563.4,3562.6,2.8069]
[1733253991327,0.03035353,3563.3,3562.4,0.823]
[1733253991542,0.03035353,3563.3,3562.8,2.80674]
[1733253991850,0.03015176,3563.2,3562.8,3.087414]
[1733253992052,2.83445962,3563.7,3562.8,3.087414]
[1733253992257,2.83445962,3563.7,3562.9,2.80669]
[1733253992424,2.83445962,3563.7,3562.8,0.280674]
[1733253992425,2.83445962,3563.7,3563.0,2.8066]
[1733253993036,3.0,3564.3,3562.8,0.280674]
[1733253993037,0.03022352,3563.6,3562.9,2.8067]
[1733253993235,2.83445962,3564.0,3563.3,2.80638]
[1733253993432,0.03029525,3563.5,3563.3,2.80638]
[1733253993649,1.44460109,3565.5,3563.4,2.8063]
[1733253993650,2.83445962,3564.9,3563.4,2.8063]
[1733253993869,0.25806556,3564.8,3563.9,2.80591]
[1733253994070,0.03040288,3564.8,3563.4,0.02805936]
[1733253994364,0.03040288,3564.8,3564.2,2.80567]
[1733253994519,0.03040288,3564.8,3564.2,0.280567]
[1733253994726,0.03040288,3564.8,3564.3,2.80556]
[1733253995134,2.83445962,3565.2,3564.3,2.7989944]
[1733253995337,0.0299096,3564.7,3564.3,2.7989944]
[1733253995525,2.83445962,3565.2,3564.3,2.7989944]
[1733253995721,2.83445962,3565.2,3563.6,2.80615]
[1733253996023,3.0,3565.4,3564.7,2.80527]
[1733253996226,2.83445962,3565.5,3564.2,2.8056]
[1733253996469,0.02935683,3565.3,3564.5,2.80537]
[1733253996759,2.83445962,3565.5,3564.0,3.0]
[1733253997069,2.83445962,3565.5,3564.7,2.80527]
[1733253997650,0.02951826,3565.4,3564.7,2.80527]
[1733253997960,0.25818284,3565.6,3564.7,2.80527]
[1733253998168,0.02959,3565.3,3564.7,2.80527]
[1733253998341,0.25818284,3565.6,3564.7,2.80527]
[1733253998860,0.02959,3565.5,3564.7,2.80527]
[1733253999161,0.02959,3565.5,3564.8,2.80519]
[1733253999535,0.02959,3565.5,3564.9,2.80509]
[1733253999934,3.59445026,3565.7,3565.0,2.80504]
[1733254000132,0.02959,3565.4,3564.8,2.80516]
[1733254000329,3.59445026,3565.7,3564.8,2.80516]
[1733254000559,0.02959,3565.3,3564.8,2.80516]
[1733254000765,3.59445026,3565.7,3564.2,3.0]
[1733254000944,0.25817058,3565.6,3565.0,2.80504]
[1733254001148,0.02959,3565.6,3565.0,2.80504]
[1733254001528,0.2878321,3565.6,3564.5,2.80539]
[1733254001945,0.02959,3565.6,3564.9,2.80505]
[1733254002360,0.28785916,3565.6,3564.9,2.80505]
[1733254002559,0.28785916,3565.6,3564.1,2.80575]
[1733254002873,0.28785916,3565.6,3564.3,2.80559]
[1733254003173,0.28785916,3565.6,3565.0,2.80504]
[1733254003339,0.28785916,3565.6,3564.0,2.80583]
[1733254003546,0.02959,3565.6,3565.5,2.80465]
[1733254003853,12.47445026,3566.5,3565.5,2.80465]
[1733254003854,0.25837466,3566.4,3565.5,2.80465]
[1733254004057,0.02963484,3565.6,3565.5,2.80465]
[1733254004229,0.25837466,3566.4,3565.7,2.80442]
[1733254004430,0.02963484,3565.6,3564.8,3.7572]
[1733254004629,0.25837466,3566.8,3566.1,2.80416]
[1733254004868,4.51e-06,3565.5,3565.1,0.7983]
[1733254005070,0.25837466,3567.2,3565.4,2.80473]
[1733254005271,0.25837466,3567.5,3566.7,2.80371]
[1733254005569,9.13837466,3567.6,3566.5,2.80384]
[1733254005731,9.13837466,3567.5,3566.5,2.80384]
[1733254006066,0.25837466,3567.4,3566.5,2.80384]
[1733254006628,0.55,3567.3,3566.5,2.80384]
[1733254006835,0.55,3567.3,3566.0,2.80418]
[1733254006836,3.0,3567.2,3566.0,2.80418]
[1733254007030,0.25837466,3567.1,3566.0,2.80418]
[1733254007258,0.25837466,3567.1,3566.3,2.80395]
[1733254007461,0.25837466,3567.1,3566.4,2.80392]
[1733254008088,0.25837466,3567.1,3565.2,3.0]
[1733254008251,0.25837466,3567.1,3566.3,2.804]
[1733254008450,0.25826902,3567.1,3566.3,2.804]
[1733254010169,0.25826902,3567.1,3566.4,2.80393]
[1733254011396,3.0,3567.2,3566.4,2.80393]
[1733254011896,0.25804656,3567.1,3566.4,2.80393]
[1733254012201,3.0,3567.2,3566.2,2.80408]
[1733254012706,3.59445026,3566.5,3565.0,2.80501]
[1733254012860,0.55,3566.4,3564.8,0.8025]
[1733254013457,3.55,3566.6,3565.1,2.80493]
[1733254013658,3.55,3566.6,3565.5,2.80461]
[1733254014285,3.0,3566.6,3564.8,0.8025]
[1733254014454,3.0,3566.6,3566.0,2.80425]
[1733254014661,8.88,3566.7,3566.0,2.80425]
[1733254014995,8.88,3566.7,3564.9,2.80512]
[1733254015209,3.0,3567.3,3565.6,0.8025]
[1733254015361,8.88,3567.8,3566.8,2.80358]
[1733254015667,0.1548778,3568.0,3566.8,2.80358]
[1733254015668,0.25791547,3567.7,3566.8,2.80358]
[1733254015856,0.25791547,3567.8,3566.8,2.80358]
[1733254016696,3.25791547,3567.8,3566.9,2.80348]
[1733254016900,0.25791547,3567.7,3566.9,2.80348]
[1733254017059,0.25791547,3567.7,3566.4,0.8044]
[1733254017263,0.41279327,3568.0,3566.6,2.80379]
[1733254017484,0.1548778,3568.0,3566.7,2.80371]
[1733254017669,0.1548778,3568.0,3567.6,2.80299]
[1733254017878,0.1548778,3568.0,3567.1,2.80337]
[1733254017879,0.1548778,3568.0,3567.7,2.80291]
[1733254018071,0.1548778,3568.0,3567.8,2.80282]
[1733254018275,0.1548778,3568.0,3567.4,2.80311]
[1733254018499,0.1548778,3568.0,3567.8,2.80279]
[1733254018926,0.1548778,3568.0,3567.8,2.80284]
[1733254019716,0.1548778,3568.0,3567.6,2.80298]
[1733254019918,0.1548778,3568.0,3567.3,2.80324]
[1733254020097,0.55,3567.9,3566.6,0.7674]
[1733254020291,0.5,3567.9,3567.0,2.80341]
[1733254020521,0.5,3567.9,3566.7,2.80371]
[1733254020522,0.1548778,3568.0,3567.1,2.80337]
[1733254020818,0.1548778,3568.0,3567.2,2.80326]